[Event "ESTCC-50 2025"]
[Site "Swidnica"]
[Date "2025.04.12"]
[Round "8.10"]
[White "Ograbek, Grzegorz"]
[Black "Szmyd, Marek"]
[Result "1/2-1/2"]
[Annotator "NA"]
[ECO "D24"]
[WhiteElo "2068"]
[BlackElo "1900"]
[PlyCount "22"]
[EventDate "2025.04.05"]
[EventType "team-tourn"]
[EventCountry "POL"]
[SourceTitle "playchess.com"]
[Source "ChessBase"]
[SourceQuality "1"]
[WhiteTeam "Poland"]
[BlackTeam "Poland"]
[WhiteTeamCountry "POL"]
[BlackTeamCountry "POL"]
[TimeControl "40/5400+30:1800+30"]

1. d4 {[%emt 0:00:08]} d5 {[%emt 0:00:28]} 2. c4 {[%emt 0:00:22]} dxc4 {[%emt 0:01:49]} 3. Nf3 {[%emt 0:00:27]} Nf6 {[%emt 0:02:45]} 4. Nc3 {[%emt 0:00:22]} e6 {[%emt 0:01:57]} 5. e3 {[%emt 0:07:16]} c5 {[%emt 0:05:33]} 6. Bxc4 {[%emt 0:00:13]} Be7 {[%emt 0:05:48]} 7. O-O {[%emt 0:00:10]} O-O {[%emt 0:00:31]} 8. Qe2 {[%emt 0:00:14]} a6 {[%emt 0:06:22]} 9. a4 {[%emt 0:05:16]} Nc6 {[%emt 0:03:57]} 10. Rd1 {[%emt 0:00:31]} Qc7 {[%emt 0:06:28]} 11. h3 {[%emt 0:37:02]} cxd4 {[%emt 0:10:53]} 1/2-1/2

[Event "ESTCC-50 2025"]
[Site "Swidnica"]
[Date "2025.04.12"]
[Round "8.11"]
[White "Stec, Czeslaw"]
[Black "Czyz, Andrzej"]
[Result "1-0"]
[Annotator "NA"]
[ECO "C42"]
[WhiteElo "1820"]
[BlackElo "1985"]
[PlyCount "127"]
[EventDate "2025.04.05"]
[EventType "team-tourn"]
[EventCountry "POL"]
[SourceTitle "playchess.com"]
[Source "ChessBase"]
[SourceQuality "1"]
[WhiteTeam "Poland"]
[BlackTeam "Poland"]
[WhiteTeamCountry "POL"]
[BlackTeamCountry "POL"]
[TimeControl "40/5400+30:1800+30"]

1. e4 {[%emt 0:00:09]} e5 {[%emt 0:00:28]} 2. Nf3 {[%emt 0:00:11]} Nf6 {[%emt 0:00:20]} 3. Nxe5 {[%emt 0:00:34]} d6 {[%emt 0:00:04]} 4. Nf3 {[%emt 0:00:15]} Nxe4 {[%emt 0:00:09]} 5. d3 {[%emt 0:00:46]} Nf6 {[%emt 0:00:23]} 6. Bg5 {[%emt 0:00:31]} Be7 {[%emt 0:00:30]} 7. Be2 {[%emt 0:00:40]} h6 {[%emt 0:00:29]} 8. Bh4 {[%emt 0:00:21]} O-O {[%emt 0:00:46]} 9. O-O {[%emt 0:00:23]} Bg4 {[%emt 0:00:23]} 10. Re1 {[%emt 0:00:36]} Re8 {[%emt 0:00:23]} 11. Nc3 {[%emt 0:01:13]} Nc6 {[%emt 0:04:09]} 12. d4 {[%emt 0:02:14]} d5 {[%emt 0:01:45]} 13. Ne5 {[%emt 0:06:05]} Bxe2 {[%emt 0:03:55]} 14. Rxe2 {[%emt 0:00:20]} Ne4 {[%emt 0:26:04]} 15. Nxc6 {[%emt 0:02:48]} bxc6 {[%emt 0:00:50]} 16. Bxe7 {[%emt 0:00:25]} Rxe7 {[%emt 0:00:15]} 17. Qe1 {[%emt 0:00:22]} Kf8 {[%emt 0:03:29]} 18. Nxe4 {[%emt 0:00:26]} dxe4 {[%emt 0:02:21]} 19. Rxe4 {[%emt 0:00:12]} Rb8 {[%emt 0:04:07]} 20. Rxe7 {[%emt 0:03:24]} Qxe7 {[%emt 0:00:03]} 21. Qxe7+ {[%emt 0:00:14]} Kxe7 {[%emt 0:00:02]} 22. b3 {[%emt 0:00:08]} Rd8 {[%emt 0:01:36]} 23. Re1+ {[%emt 0:02:12]} Kf6 {[%emt 0:07:36]} 24. c3 {[%emt 0:00:37]} Rd5 {[%emt 0:00:14]} 25. f3 {[%emt 0:02:57]} c5 {[%emt 0:00:15]} 26. Re4 {[%emt 0:04:42]} cxd4 {[%emt 0:02:44]} 27. Rxd4 {[%emt 0:01:18]} Rc5 {[%emt 0:09:28]} 28. Rd3 {[%emt 0:01:08]} a5 {[%emt 0:00:59]} 29. Kf2 {[%emt 0:00:34]} a4 {[%emt 0:00:54]} 30. c4 {[%emt 0:01:55]} axb3 {[%emt 0:00:28]} 31. axb3 {[%emt 0:00:09]} Ra5 {[%emt 0:00:08]} 32. Ke3 {[%emt 0:01:03]} c5 {[%emt 0:01:03]} 33. h4 {[%emt 0:03:13]} Ke6 {[%emt 0:02:34]} 34. g4 {[%emt 0:02:13]} g6 {[%emt 0:00:38]} 35. Kf4 {[%emt 0:08:50]} Ra3 {[%emt 0:01:24]} 36. h5 {[%emt 0:01:35]} g5+ {[%emt 0:02:11]} 37. Ke3 {[%emt 0:00:17]} Ra6 {[%emt 0:01:06]} 38. Rd5 {[%emt 0:01:14]} Rb6 {[%emt 0:04:27]} 39. Rxc5 {[%emt 0:00:41]} Rxb3+ {[%emt 0:00:08]} 40. Ke4 {[%emt 0:00:00]} f6 {[%emt 0:00:00]} 41. Rf5 {[%emt 0:01:24]} Rc3 {[%emt 0:03:26]} 42. Kd4 {[%emt 0:00:57]} Rc1 {[%emt 0:00:04]} 43. Kc5 {[%emt 0:01:23]} Rb1 {[%emt 0:00:41]} 44. Kc6 {[%emt 0:00:26]} Rb3 {[%emt 0:00:17]} 45. c5 {[%emt 0:03:02]} Ke7 {[%emt 0:03:16]} 46. Kc7 {[%emt 0:00:21]} Rc3 {[%emt 0:00:35]} 47. c6 {[%emt 0:00:14]} Ke6 {[%emt 0:00:43]} 48. Kb7 {[%emt 0:08:43]} Rb3+ {[%emt 0:04:02]} 49. Kc8 {[%emt 0:00:57]} Ke7 {[%emt 0:02:56]} 50. c7 {[%emt 0:01:19]} Rb6 {[%emt 0:03:36]} 51. Rc5 {[%emt 0:01:20]} Rb3 {[%emt 0:00:18]} 52. Rc1 {[%emt 0:00:39]} Rxf3 {[%emt 0:00:57]} 53. Rb1 {[%emt 0:00:38]} f5 {[%emt 0:01:03]} 54. Kb7 {[%emt 0:00:30]} Rc3 {[%emt 0:00:06]} 55. gxf5 {[%emt 0:02:19]} Kf6 {[%emt 0:00:09]} 56. Rb6+ {[%emt 0:00:20]} Kxf5 {[%emt 0:00:11]} 57. Rc6 {[%emt 0:00:15]} Rb3+ {[%emt 0:00:04]} 58. Ka6 {[%emt 0:00:15]} Ra3+ {[%emt 0:00:32]} 59. Kb5 {[%emt 0:00:56]} Ra8 {[%emt 0:00:02]} 60. Rxh6 {[%emt 0:00:30]} g4 {[%emt 0:02:50]} 61. Rd6 {[%emt 0:02:02]} Rc8 {[%emt 0:00:17]} 62. Kb6 {[%emt 0:00:17]} g3 {[%emt 0:00:33]} 63. Rg6 Rh8 {[%emt 0:00:53]} 64. Rxg3 {[%emt 0:01:23]} 1-0

[Event "ESTCC-50 2025"]
[Site "Swidnica"]
[Date "2025.04.12"]
[Round "8.12"]
[White "Wielosz, Jaroslaw"]
[Black "Zaremba, Artur"]
[Result "0-1"]
[Annotator "ChessBase"]
[ECO "E09"]
[WhiteElo "1939"]
[BlackElo "2133"]
[PlyCount "158"]
[EventDate "2025.04.05"]
[EventType "team-tourn"]
[EventCountry "POL"]
[SourceTitle "playchess.com"]
[Source "ChessBase"]
[SourceQuality "1"]
[WhiteTeam "Poland"]
[BlackTeam "Poland"]
[WhiteTeamCountry "POL"]
[BlackTeamCountry "POL"]
[TimeControl "40/5400+30:1800+30"]

1. c4 {[%emt 0:00:14]} e6 {[%emt 0:00:51]} 2. Nf3 {[%emt 0:00:23]} d5 {[%emt 0:01:13]} 3. d4 {[%emt 0:00:10]} Nf6 {[%emt 0:00:13]} 4. g3 {[%emt 0:00:15]} Be7 {[%emt 0:01:25]} 5. Bg2 {[%emt 0:00:09]} c6 {[%emt 0:00:19]} 6. Nbd2 {[%emt 0:01:27]} Nbd7 {[%emt 0:00:37]} 7. O-O {[%emt 0:00:56]} O-O {[%emt 0:00:22]} 8. Qc2 {[%emt 0:00:17]} h6 {[%emt 0:00:25]} 9. e4 {[%emt 0:02:58]} dxe4 {[%emt 0:01:37]} 10. Nxe4 {[%emt 0:00:12]} Nxe4 {[%emt 0:01:02]} 11. Qxe4 {[%emt 0:00:09]} Nf6 {[%emt 0:00:15]} 12. Qc2 {[%emt 0:00:35]} Qc7 {[%emt 0:03:48]} 13. Bf4 {[%emt 0:06:03]} Bd6 {[%emt 0:00:10]} 14. Bxd6 {[%emt 0:00:26]} Qxd6 {[%emt 0:00:08]} 15. Rad1 {[%emt 0:01:36]} Rd8 {[%emt 0:04:09]} 16. Rfe1 {[%emt 0:02:55]} Bd7 {[%emt 0:00:12]} 17. Ne5 {[%emt 0:02:43]} Be8 {[%emt 0:00:15]} 18. c5 {[%emt 0:01:29]} Qc7 {[%emt 0:00:25]} 19. Nc4 {[%emt 0:00:40]} b5 {[%emt 0:04:03]} 20. Nd6 {[%emt 0:01:09]} Rab8 {[%emt 0:00:21]} 21. Qd2 {[%emt 0:15:26]} Bd7 {[%emt 0:02:42]} 22. Bf1 {[%emt 0:03:49]} Ne8 {[%emt 0:00:39]} 23. Ne4 {[%emt 0:06:54]} e5 {[%emt 0:01:37]} 24. Qe3 {[%emt 0:07:54]} Be6 {[%emt 0:05:34]} 25. b3 {[%emt 0:05:22]} exd4 {[%emt 0:01:12]} 26. Rxd4 {[%emt 0:00:33]} Rxd4 {[%emt 0:01:10]} 27. Qxd4 {[%emt 0:00:08]} Rd8 {[%emt 0:00:09]} 28. Qc3 {[%emt 0:07:49]} Qd7 {[%emt 0:00:29]} 29. Bg2 {[%emt 0:09:20]} Bd5 {[%emt 0:02:13]} 30. Qe5 {[%emt 0:05:03]} Kf8 {[%emt 0:02:13]} 31. Rd1 {[%emt 0:04:19]} Qe7 {[%emt 0:01:17]} 32. Qxe7+ {[%emt 0:00:56]} Kxe7 {[%emt 0:00:07]} 33. Nc3 {[%emt 0:01:34]} Bxg2 {[%emt 0:00:18]} 34. Rxd8 {[%emt 0:00:25]} Kxd8 {[%emt 0:00:09]} 35. Kxg2 {[%emt 0:00:07]} Nf6 {[%emt 0:02:15]} 36. Kf3 {[%emt 0:02:34]} Kd7 {[%emt 0:03:43]} 37. Ne4 {[%emt 0:05:35]} Nd5 {[%emt 0:03:40]} 38. Nd6 {[%emt 0:03:32]} Ke6 {[%emt 0:00:02]} 39. a4 {[%emt 0:01:06]} bxa4 {[%emt 0:01:15]} 40. bxa4 {[%emt 0:00:00]} Nc3 {[%emt 0:00:00]} 41. a5 {[%emt 0:03:39]} Na4 {[%emt 0:00:53]} 42. Ne8 {[%emt 0:06:37]} g6 {[%emt 0:01:39]} 43. Nc7+ {[%emt 0:03:40]} Ke5 {[%emt 0:00:29]} 44. Ke3 {[%emt 0:02:30]} Nxc5 {[%emt 0:00:35]} 45. Ne8 {[%emt 0:04:42]} Ke6 {[%emt 0:01:48]} 46. Kd4 {[%emt 0:01:58]} Nb3+ {[%emt 0:00:12]} 47. Kc4 {[%emt 0:00:31]} Nxa5+ {[%emt 0:00:22]} 48. Kc5 {[%emt 0:00:25]} Nb3+ {[%emt 0:07:03]} 49. Kxc6 {[%emt 0:00:11]} Nd4+ {[%emt 0:00:05]} 50. Kc5 {[%emt 0:00:51]} Nf3 {[%emt 0:00:04]} 51. h4 {[%emt 0:01:39]} f5 {[%emt 0:03:19]} 52. Nd6 {[%emt 0:02:12]} Ne5 {[%emt 0:00:32]} 53. Nb5 {[%emt 0:00:43]} Nd3+ {[%emt 0:06:07]} 54. Kd4 {[%emt 0:00:08]} Nxf2 {[%emt 0:00:05]} 55. Nxa7 {[%emt 0:00:42]} Ne4 {[%emt 0:00:16]} 56. g4 {[%emt 0:01:32]} Nd6 {[%emt 0:00:08]} 57. Nc6 {[%emt 0:03:43]} fxg4 {[%emt 0:00:35]} 58. Ke3 {[%emt 0:01:05]} h5 {[%emt 0:00:12]} 59. Kf4 {[%emt 0:00:29]} Nf5 {[%emt 0:00:42]} 60. Ne5 {[%emt 0:03:12]} Nxh4 {[%emt 0:00:18]} 61. Nd3 {[%emt 0:00:39]} Kf6 {[%emt 0:00:14]} 62. Nc5 {[%emt 0:00:28]} g5+ {[%emt 0:00:11]} 63. Kg3 {[%emt 0:00:19]} Nf5+ {[%emt 0:00:19]} 64. Kg2 {[%emt 0:00:18]} Nd6 {[%emt 0:00:25]} 65. Nd7+ {[%emt 0:01:15]} Kf5 {[%emt 0:00:08]} 66. Nb6 {[%emt 0:00:31]} h4 {[%emt 0:00:47]} 67. Nd5 {[%emt 0:00:15]} g3 {[%emt 0:00:40]} 68. Ne3+ {[%emt 0:00:48]} Ke4 {[%emt 0:00:10]} 69. Ng4 {[%emt 0:00:33]} Kf4 {[%emt 0:00:24]} 70. Nf6 {[%emt 0:00:16]} g4 {[%emt 0:00:18]} 71. Nh5+ {[%emt 0:00:21]} Kg5 {[%emt 0:00:07]} 72. Ng7 {[%emt 0:00:12]} Ne4 {[%emt 0:00:07]} 73. Ne6+ {[%emt 0:00:47]} Kf5 {[%emt 0:00:38]} 74. Nd4+ {[%emt 0:01:20]} Kf4 {[%emt 0:00:21]} 75. Ne6+ {[%emt 0:00:35]} Ke3 {[%emt 0:00:08]} 76. Ng7 {[%emt 0:00:48]} h3+ {[%emt 0:00:09]} 77. Kg1 {[%emt 0:00:14]} Kf3 {[%emt 0:00:24]} 78. Nf5 {[%emt 0:01:19]} h2+ {[%emt 0:00:07]} 79. Kh1 {[%emt 0:00:10]} Nf2# {[%emt 0:00:44]} 0-1

[Event "ESTCC-50 2025"]
[Site "Swidnica"]
[Date "2025.04.12"]
[Round "8.13"]
[White "Lalic, Susan K"]
[Black "Laszewicz, Pawel"]
[Result "1/2-1/2"]
[Annotator "ChessBase"]
[ECO "B40"]
[WhiteElo "2227"]
[BlackElo "2011"]
[PlyCount "123"]
[EventDate "2025.04.05"]
[EventType "team-tourn"]
[EventCountry "POL"]
[SourceTitle "playchess.com"]
[Source "ChessBase"]
[SourceQuality "1"]
[WhiteTeam "England"]
[BlackTeam "Poland"]
[WhiteTeamCountry "ENG"]
[BlackTeamCountry "POL"]
[TimeControl "40/5400+30:1800+30"]

1. e4 {[%emt 0:00:09]} c5 {[%emt 0:00:10]} 2. Nf3 {[%emt 0:00:35]} e6 {[%emt 0:00:02]} 3. c3 {[%emt 0:01:16]} Nf6 {[%emt 0:00:13]} 4. e5 {[%emt 0:00:25]} Nd5 {[%emt 0:00:03]} 5. d4 {[%emt 0:02:42]} cxd4 {[%emt 0:00:37]} 6. cxd4 {[%emt 0:02:38]} Nc6 {[%emt 0:01:47]} 7. a3 {[%emt 0:03:15]} d6 {[%emt 0:02:44]} 8. Bd3 {[%emt 0:03:55]} dxe5 {[%emt 0:06:46]} 9. dxe5 {[%emt 0:01:32]} Qc7 {[%emt 0:01:18]} 10. O-O {[%emt 0:00:29]} Bd7 {[%emt 0:05:08]} 11. Re1 {[%emt 0:08:37]} h6 {[%emt 0:10:20]} 12. Bd2 {[%emt 0:05:05]} O-O-O {[%emt 0:04:41]} 13. Nc3 {[%emt 0:06:06]} Nxc3 {[%emt 0:04:27]} 14. Bxc3 {[%emt 0:02:04]} Kb8 {[%emt 0:01:20]} 15. Rc1 {[%emt 0:07:15]} Rc8 {[%emt 0:04:34]} 16. Qd2 {[%emt 0:07:15]} Be7 {[%emt 0:14:53]} 17. b4 {[%emt 0:04:16]} a6 {[%emt 0:09:14]} 18. a4 {[%emt 0:10:04]} Na7 {[%emt 0:03:23]} 19. Bd4 {[%emt 0:08:37]} Qd8 {[%emt 0:04:48]} 20. Qe3 {[%emt 0:00:57]} Nc6 {[%emt 0:01:02]} 21. Bb6 {[%emt 0:00:48]} Qe8 {[%emt 0:01:12]} 22. b5 {[%emt 0:01:45]} Nb4 {[%emt 0:01:11]} 23. bxa6 {[%emt 0:10:14]} Bc6 {[%emt 0:05:54]} 24. axb7 {[%emt 0:01:05]} Bxb7 {[%emt 0:00:19]} 25. Bb5 {[%emt 0:00:50]} Qf8 {[%emt 0:03:58]} 26. Rxc8+ {[%emt 0:01:12]} Qxc8 {[%emt 0:01:37]} 27. Rc1 {[%emt 0:00:10]} Nd5 {[%emt 0:02:11]} 28. Rxc8+ {[%emt 0:03:02]} Rxc8 {[%emt 0:00:03]} 29. Qd4 {[%emt 0:00:54]} Rc1+ {[%emt 0:00:44]} 30. Bf1 {[%emt 0:00:05]} Ba6 {[%emt 0:00:31]} 31. Nd2 {[%emt 0:01:15]} Bb4 {[%emt 0:00:35]} 32. h3 {[%emt 0:02:57]} Bxd2 {[%emt 0:00:32]} 33. Qxd2 {[%emt 0:02:15]} Rxf1+ {[%emt 0:00:23]} 34. Kh2 {[%emt 0:00:00]} Nxb6 {[%emt 0:00:47]} 35. Qd6+ {[%emt 0:00:20]} Ka7 {[%emt 0:01:06]} 36. Qc5 {[%emt 0:01:24]} Kb7 {[%emt 0:00:36]} 37. Qe7+ {[%emt 0:00:07]} Kb8 {[%emt 0:02:17]} 38. Qd6+ {[%emt 0:01:03]} Kb7 {[%emt 0:00:53]} 39. Qe7+ {[%emt 0:00:20]} Kb8 {[%emt 0:00:30]} 40. Qxf7 {[%emt 0:00:00]} Bb7 {[%emt 0:00:00]} 41. Qf8+ {[%emt 0:04:23]} Nc8 {[%emt 0:02:51]} 42. Kg3 {[%emt 0:01:38]} Ra1 {[%emt 0:01:48]} 43. Qxg7 {[%emt 0:00:53]} Rxa4 {[%emt 0:01:27]} 44. Qxh6 {[%emt 0:00:11]} Bd5 {[%emt 0:00:50]} 45. h4 {[%emt 0:03:59]} Kc7 {[%emt 0:02:41]} 46. Qc1+ {[%emt 0:16:57]} Kd7 {[%emt 0:00:23]} 47. Kh3 {[%emt 0:01:22]} Ne7 {[%emt 0:01:02]} 48. h5 {[%emt 0:00:11]} Re4 {[%emt 0:05:42]} 49. f4 {[%emt 0:01:58]} Nf5 {[%emt 0:01:41]} 50. g4 {[%emt 0:04:00]} Re3+ {[%emt 0:00:36]} 51. Qxe3 {[%emt 0:00:46]} Nxe3 {[%emt 0:00:25]} 52. h6 {[%emt 0:01:20]} Be4 {[%emt 0:00:24]} 53. Kh4 {[%emt 0:00:02]} Nxg4 {[%emt 0:00:45]} 54. Kxg4 {[%emt 0:00:28]} Bh7 {[%emt 0:06:32]} 55. Kg5 {[%emt 0:00:15]} Ke7 {[%emt 0:00:10]} 56. Kh5 {[%emt 0:00:05]} Kf7 {[%emt 0:00:28]} 57. Kg5 {[%emt 0:00:02]} Bd3 {[%emt 0:00:56]} 58. Kh5 {[%emt 0:00:07]} Bf5 {[%emt 0:01:22]} 59. Kg5 {[%emt 0:00:08]} Kf8 {[%emt 0:04:31]} 60. Kf6 {[%emt 0:01:36]} Kg8 {[%emt 0:00:13]} 61. Kg5 {[%emt 0:00:06]} Kh7 {[%emt 0:00:42]} 62. Kh5 {[%emt 0:00:02]} 1/2-1/2

[Event "ESTCC-50 2025"]
[Site "Swidnica"]
[Date "2025.04.12"]
[Round "8.14"]
[White "Machlowski, Slawomir"]
[Black "Regan, Natasha K"]
[Result "0-1"]
[Annotator "NA"]
[ECO "A25"]
[WhiteElo "1963"]
[BlackElo "2056"]
[PlyCount "92"]
[EventDate "2025.04.05"]
[EventType "team-tourn"]
[EventCountry "POL"]
[SourceTitle "playchess.com"]
[Source "ChessBase"]
[SourceQuality "1"]
[WhiteTeam "Czech Republic"]
[BlackTeam "England"]
[WhiteTeamCountry "CZE"]
[BlackTeamCountry "ENG"]
[TimeControl "40/5400+30:1800+30"]

1. c4 {[%emt 0:00:06]} e5 {[%emt 0:00:25]} 2. Nc3 {[%emt 0:00:19]} Nc6 {[%emt 0:01:44]} 3. g3 {[%emt 0:00:43]} Bc5 {[%emt 0:05:49]} 4. Nf3 {[%emt 0:04:32]} a6 {[%emt 0:04:28]} 5. e3 {[%emt 0:04:00]} Ba7 {[%emt 0:03:50]} 6. d4 {[%emt 0:02:04]} exd4 {[%emt 0:01:40]} 7. exd4 {[%emt 0:00:11]} d6 {[%emt 0:01:46]} 8. Bg2 {[%emt 0:02:26]} Bg4 {[%emt 0:04:12]} 9. Be3 {[%emt 0:04:03]} Nge7 {[%emt 0:07:54]} 10. h3 {[%emt 0:03:30]} Bh5 {[%emt 0:01:42]} 11. O-O {[%emt 0:03:14]} O-O {[%emt 0:03:42]} 12. a3 {[%emt 0:07:54]} Nf5 {[%emt 0:06:19]} 13. g4 {[%emt 0:04:05]} Nxe3 {[%emt 0:01:29]} 14. fxe3 {[%emt 0:00:07]} Bg6 {[%emt 0:00:56]} 15. b4 {[%emt 0:04:10]} f5 {[%emt 0:08:27]} 16. Nd5 {[%emt 0:03:53]} fxg4 {[%emt 0:05:03]} 17. hxg4 {[%emt 0:00:17]} h5 {[%emt 0:01:40]} 18. Nh2 {[%emt 0:07:52]} Qg5 {[%emt 0:09:18]} 19. Nf4 {[%emt 0:06:06]} Bxd4 {[%emt 0:07:59]} 20. exd4 {[%emt 0:04:31]} Rxf4 {[%emt 0:01:10]} 21. Rxf4 {[%emt 0:03:31]} Qxf4 {[%emt 0:00:20]} 22. Ra2 {[%emt 0:04:58]} Qe3+ {[%emt 0:06:19]} 23. Kh1 {[%emt 0:01:04]} h4 {[%emt 0:01:02]} 24. Nf1 {[%emt 0:04:36]} Qf4 {[%emt 0:01:47]} 25. Qd2 {[%emt 0:01:36]} Qxg4 {[%emt 0:00:59]} 26. Ne3 {[%emt 0:03:27]} Qg3 {[%emt 0:01:58]} 27. Nf1 {[%emt 0:01:15]} Qg4 {[%emt 0:00:46]} 28. Ne3 {[%emt 0:00:10]} Qh5 {[%emt 0:03:37]} 29. Kh2 {[%emt 0:02:59]} Re8 {[%emt 0:01:13]} 30. Nd5 {[%emt 0:00:55]} Qg4 {[%emt 0:02:43]} 31. Qf2 {[%emt 0:02:48]} Be4 {[%emt 0:02:16]} 32. Nxc7 {[%emt 0:03:31]} Rf8 {[%emt 0:00:23]} 33. Qe1 {[%emt 0:01:05]} Qf4+ {[%emt 0:00:24]} 34. Kg1 {[%emt 0:01:43]} Bxg2 {[%emt 0:00:50]} 35. Rxg2 {[%emt 0:00:07]} Qxd4+ {[%emt 0:00:37]} 36. Kh1 {[%emt 0:00:19]} Qe5 {[%emt 0:01:41]} 37. Qd1 {[%emt 0:01:12]} h3 {[%emt 0:00:18]} 38. Re2 {[%emt 0:00:35]} Qf5 {[%emt 0:00:51]} 39. Nd5 {[%emt 0:01:34]} Qf3+ {[%emt 0:00:53]} 40. Kh2 {[%emt 0:00:00]} Ne5 {[%emt 0:00:00]} 41. Ne7+ {[%emt 0:05:34]} Kh8 {[%emt 0:07:27]} 42. Qe1 {[%emt 0:02:56]} Rf6 {[%emt 0:06:05]} 43. Kg1 {[%emt 0:07:32]} Qg4+ {[%emt 0:08:26]} 44. Kh1 {[%emt 0:00:22]} Rf4 {[%emt 0:02:03]} 45. Rf2 {[%emt 0:12:53]} Nd3 {[%emt 0:02:40]} 46. Rxf4 {[%emt 0:00:45]} Qg2# 0-1

[Event "ESTCC-50 2025"]
[Site "Swidnica"]
[Date "2025.04.12"]
[Round "8.15"]
[White "Jackson, Sheila"]
[Black "Kruczynski, Marek"]
[Result "1-0"]
[Annotator "NA"]
[ECO "B01"]
[WhiteElo "2031"]
[BlackElo "1862"]
[PlyCount "59"]
[EventDate "2025.04.05"]
[EventType "team-tourn"]
[EventCountry "POL"]
[SourceTitle "playchess.com"]
[Source "ChessBase"]
[SourceQuality "1"]
[WhiteTeam "England"]
[BlackTeam "Poland"]
[WhiteTeamCountry "ENG"]
[BlackTeamCountry "POL"]
[TimeControl "40/5400+30:1800+30"]

1. e4 {[%emt 0:00:02]} d5 {[%emt 0:00:31]} 2. exd5 {[%emt 0:00:18]} Qxd5 {[%emt 0:00:18]} 3. Nc3 {[%emt 0:00:05]} Qd6 {[%emt 0:00:24]} 4. d4 {[%emt 0:02:08]} Nf6 {[%emt 0:00:24]} 5. Nf3 {[%emt 0:01:32]} Bg4 {[%emt 0:02:15]} 6. Bb5+ {[%emt 0:13:50]} c6 {[%emt 0:02:36]} 7. Be2 {[%emt 0:00:39]} Nbd7 {[%emt 0:01:30]} 8. O-O {[%emt 0:01:38]} e6 {[%emt 0:01:39]} 9. Be3 {[%emt 0:02:31]} Qc7 {[%emt 0:03:06]} 10. h3 {[%emt 0:02:41]} h5 {[%emt 0:09:20]} 11. Ng5 {[%emt 0:12:28]} Nb6 {[%emt 0:12:47]} 12. hxg4 {[%emt 0:11:40]} hxg4 {[%emt 0:13:09]} 13. g3 {[%emt 0:07:01]} Bd6 {[%emt 0:03:22]} 14. Kg2 {[%emt 0:00:58]} O-O-O {[%emt 0:00:34]} 15. Bxg4 {[%emt 0:02:33]} Nxg4 {[%emt 0:03:37]} 16. Qxg4 {[%emt 0:00:06]} f5 {[%emt 0:00:14]} 17. Qf3 {[%emt 0:03:32]} Qd7 {[%emt 0:06:46]} 18. Rh1 {[%emt 0:03:04]} Rhf8 {[%emt 0:02:43]} 19. Bf4 {[%emt 0:00:32]} Be7 {[%emt 0:08:46]} 20. Rae1 {[%emt 0:03:01]} Rf6 {[%emt 0:01:53]} 21. Be5 {[%emt 0:03:25]} Rg6 {[%emt 0:01:56]} 22. Nf7 {[%emt 0:04:03]} Rf8 {[%emt 0:00:49]} 23. Qh5 {[%emt 0:05:53]} Rg4 {[%emt 0:01:39]} 24. f3 {[%emt 0:00:18]} Rxd4 {[%emt 0:00:36]} 25. Bxd4 {[%emt 0:01:00]} Qxd4 {[%emt 0:00:09]} 26. Ne5 {[%emt 0:01:54]} Bc5 {[%emt 0:03:41]} 27. Re2 {[%emt 0:01:29]} Nd5 {[%emt 0:05:03]} 28. Nxd5 {[%emt 0:00:51]} cxd5 {[%emt 0:00:32]} 29. Nd3 {[%emt 0:00:44]} Qc4 {[%emt 0:01:54]} 30. Qg6 {[%emt 0:01:39]} 1-0

[Event "ESTCC-50 2025"]
[Site "Swidnica"]
[Date "2025.04.12"]
[Round "8.16"]
[White "Szydelko, Kazimierz"]
[Black "Fink-Nunn, Petra"]
[Result "1/2-1/2"]
[Annotator "NA"]
[ECO "D30"]
[WhiteElo "1798"]
[BlackElo "1997"]
[PlyCount "107"]
[EventDate "2025.04.05"]
[EventType "team-tourn"]
[EventCountry "POL"]
[SourceTitle "playchess.com"]
[Source "ChessBase"]
[SourceQuality "1"]
[WhiteTeam "Poland"]
[BlackTeam "England"]
[WhiteTeamCountry "POL"]
[BlackTeamCountry "ENG"]
[TimeControl "40/5400+30:1800+30"]

1. d4 {[%emt 0:00:02]} d5 {[%emt 0:00:09]} 2. c4 {[%emt 0:00:06]} e6 {[%emt 0:00:09]} 3. Nf3 {[%emt 0:00:17]} a6 {[%emt 0:00:24]} 4. g3 {[%emt 0:04:17]} dxc4 {[%emt 0:00:26]} 5. Ne5 {[%emt 0:01:30]} Nc6 {[%emt 0:01:07]} 6. Nxc6 {[%emt 0:00:26]} Qd5 {[%emt 0:00:45]} 7. f3 {[%emt 0:02:08]} Qxc6 {[%emt 0:00:38]} 8. Bg2 {[%emt 0:00:48]} b5 {[%emt 0:09:03]} 9. O-O {[%emt 0:00:23]} Bb7 {[%emt 0:00:29]} 10. Rf2 {[%emt 0:02:02]} Qd7 {[%emt 0:02:48]} 11. e4 {[%emt 0:01:09]} e5 {[%emt 0:10:48]} 12. Be3 {[%emt 0:00:55]} exd4 {[%emt 0:00:49]} 13. Qxd4 {[%emt 0:01:45]} Qxd4 {[%emt 0:00:36]} 14. Bxd4 {[%emt 0:00:02]} O-O-O {[%emt 0:00:40]} 15. Be3 {[%emt 0:00:59]} Rd3 {[%emt 0:03:14]} 16. Re2 {[%emt 0:05:40]} Rxe3 {[%emt 0:08:20]} 17. Rxe3 {[%emt 0:00:02]} Bc5 {[%emt 0:00:11]} 18. Kf2 {[%emt 0:00:05]} Nf6 {[%emt 0:04:26]} 19. Ke2 {[%emt 0:00:18]} Bxe3 {[%emt 0:00:24]} 20. Kxe3 {[%emt 0:00:02]} Rd8 {[%emt 0:04:27]} 21. Nd2 {[%emt 0:02:34]} c6 {[%emt 0:16:53]} 22. Bf1 {[%emt 0:04:16]} Kc7 {[%emt 0:00:44]} 23. Rc1 {[%emt 0:03:02]} Kb6 {[%emt 0:07:23]} 24. Rd1 {[%emt 0:03:12]} Kc7 {[%emt 0:01:14]} 25. Rc1 {[%emt 0:00:09]} Bc8 {[%emt 0:06:25]} 26. g4 {[%emt 0:00:50]} g5 {[%emt 0:01:35]} 27. Be2 {[%emt 0:00:22]} h5 {[%emt 0:03:20]} 28. h4 {[%emt 0:05:35]} gxh4 {[%emt 0:01:19]} 29. g5 {[%emt 0:00:10]} Nh7 {[%emt 0:04:14]} 30. Rg1 {[%emt 0:00:30]} Rg8 {[%emt 0:00:29]} 31. f4 {[%emt 0:00:58]} Nf6 {[%emt 0:04:21]} 32. f5 {[%emt 0:01:50]} Ng4+ {[%emt 0:00:17]} 33. Bxg4 {[%emt 0:00:17]} Rxg5 {[%emt 0:00:20]} 34. Nf3 {[%emt 0:04:41]} Rxg4 {[%emt 0:00:05]} 35. Rxg4 {[%emt 0:00:11]} hxg4 {[%emt 0:00:02]} 36. Nxh4 {[%emt 0:00:01]} Kd6 {[%emt 0:01:03]} 37. Kf4 {[%emt 0:00:43]} b4 {[%emt 0:01:44]} 38. Ng2 {[%emt 0:01:41]} f6 {[%emt 0:03:10]} 39. Ne3 {[%emt 0:09:31]} Kc5 {[%emt 0:02:19]} 40. Nc2 {[%emt 0:00:00]} g3 {[%emt 0:00:00]} 41. Kxg3 {[%emt 0:03:56]} a5 {[%emt 0:16:47]} 42. Kf4 {[%emt 0:01:29]} Kd6 {[%emt 0:03:12]} 43. Ne3 {[%emt 0:05:53]} Ba6 {[%emt 0:00:36]} 44. Ng4 {[%emt 0:02:07]} a4 {[%emt 0:07:28]} 45. Ke3 {[%emt 0:06:53]} c3 {[%emt 0:02:12]} 46. b3 {[%emt 0:01:25]} axb3 {[%emt 0:00:12]} 47. axb3 {[%emt 0:00:02]} Ke7 {[%emt 0:01:03]} 48. e5 {[%emt 0:04:01]} fxe5 {[%emt 0:00:06]} 49. f6+ {[%emt 0:00:07]} Ke6 50. f7 {[%emt 0:00:09]} Kxf7 {[%emt 0:04:06]} 51. Nxe5+ {[%emt 0:00:07]} Ke6 {[%emt 0:00:14]} 52. Nxc6 {[%emt 0:00:05]} Kd6 {[%emt 0:01:27]} 53. Nxb4 {[%emt 0:00:06]} Bc4 {[%emt 0:01:44]} 54. Ke4 1/2-1/2